bitfinex/quotes_ETHUSD_20250524
["timestamp","ask_amount","ask_price","bid_price","bid_amount"]
[1748074879572,0.36440857,2543.1,2542.9,0.7906]
[1748074879950,0.36440857,2543.0,2542.9,0.7906]
[1748074880636,0.36440857,2543.2,2542.9,0.7906]
[1748074882213,2.72040857,2543.1,2542.9,0.7906]
[1748074883080,0.36440857,2543.1,2542.9,0.7906]
[1748074883280,0.36440857,2543.3,2542.9,0.7906]
[1748074884116,3.7109536,2543.1,2542.1,0.8124]
[1748074884314,3.7109536,2543.1,2542.3,0.8124]
[1748074885022,2.72040857,2543.0,2542.3,0.8124]
[1748074885693,0.36440857,2542.9,2542.3,0.8124]
[1748074888720,0.36440857,2542.8,2542.3,0.8124]
[1748074888921,0.36440857,2542.8,2542.4,0.61397349]
[1748074889130,0.36440857,2542.8,2542.5,32.243]
[1748074889429,0.36440857,2542.8,2542.5,36.19299309]
[1748074889842,2.356,2543.0,2542.5,36.19299309]
[1748074890287,2.356,2543.0,2542.5,19.23499309]
[1748074890492,2.356,2543.0,2542.5,15.285]
[1748074891142,0.3645867,2542.9,2542.5,15.285]
[1748074892341,2.7205867,2542.8,2542.6,0.7842]
[1748074892640,0.3645867,2542.8,2542.6,0.7842]
[1748074893415,2.356,2543.0,2542.6,0.7842]
[1748074894164,0.36504702,2542.9,2542.6,0.7842]
[1748074894958,0.46396283,2543.1,2542.6,0.7842]
[1748074895459,0.36512502,2543.0,2542.6,0.7842]
[1748074896267,0.36512502,2542.9,2542.6,0.7842]
[1748074896866,0.36512502,2542.8,2542.6,0.7842]
[1748074897935,0.46396283,2543.2,2542.6,0.7842]
[1748074899078,0.36537564,2543.1,2542.6,0.7842]
[1748074899372,0.36537564,2543.1,2542.7,32.24]
[1748074899568,0.36537564,2543.1,2542.8,3.94999309]
[1748074900174,0.36537564,2543.0,2542.9,0.79551908]
[1748074900343,0.36537564,2543.0,2542.9,0.7562]
[1748074901693,0.46396283,2543.5,2542.9,0.7562]
[1748074902085,0.51396283,2543.9,2542.9,0.7562]
[1748074902256,0.51396283,2543.9,2543.0,0.79550797]
[1748074902595,0.51396283,2543.9,2543.2,0.7562]
[1748074902790,0.51396283,2543.9,2543.3,2.00942]
[1748074903151,0.36498067,2543.8,2543.3,2.00942]
[1748074904111,0.05,2543.9,2543.3,2.00942]
[1748074904606,0.05,2543.9,2543.4,0.7562]
[1748074909097,0.05,2543.9,2543.5,38.81]
[1748074909297,0.05,2543.9,2543.6,3.94999309]
[1748074910782,0.05,2543.9,2543.5,15.265]
[1748074911723,0.05,2543.9,2543.4,0.7562]
[1748074911896,1.3549536,2543.8,2543.5,11.772]
[1748074912097,1.3549536,2543.8,2543.4,0.7562]
[1748074912326,1.3549536,2543.8,2543.5,11.772]
[1748074912693,0.05,2543.9,2543.5,11.772]
[1748074919136,0.05,2543.9,2543.6,32.216]
[1748074919288,0.05,2543.9,2543.7,11.772]
[1748074919493,0.41467452,2543.9,2543.7,11.772]
[1748074920727,3.7109536,2543.8,2542.9,0.8322]
[1748074920932,0.7502,2543.3,2542.7,0.8322]
[1748074921229,1.3549536,2542.8,2542.4,0.61397349]
[1748074921436,1.3549536,2542.8,2542.5,11.772]
[1748074921927,1.3549536,2542.8,2542.6,11.772]
[1748074922115,1.3549536,2542.8,2542.4,0.61397349]
[1748074922315,1.3549536,2542.8,2542.7,11.772]
[1748074922518,1.11487452,2543.1,2542.7,12.9492]
[1748074922835,0.36467452,2543.0,2542.7,12.9492]
[1748074923898,0.36467452,2543.2,2542.7,12.9492]
[1748074924296,0.36467452,2543.2,2542.8,0.03931807]
[1748074924631,0.36467452,2543.2,2542.9,0.8322]
[1748074925129,0.36467452,2543.4,2543.0,0.03931518]
[1748074925508,0.36467452,2543.4,2542.9,0.8322]
[1748074925905,0.36467452,2543.5,2542.9,0.8322]
[1748074926109,1.71962812,2543.5,2542.8,1.38207181]
[1748074926305,1.71962812,2543.5,2542.4,0.61397349]
[1748074926306,1.3549536,2543.3,2542.4,0.61397349]
[1748074926531,1.3549536,2543.1,2542.5,11.773]
[1748074926827,0.36467452,2543.0,2542.6,0.784]
[1748074927454,0.36467452,2543.0,2542.4,0.61397349]
[1748074927634,2.1644536,2542.9,2542.5,11.773]
[1748074928136,0.36467452,2542.8,2542.5,11.773]
[1748074929131,0.36467452,2542.7,2542.6,32.222]
[1748074929334,5.43512812,2542.7,2542.6,16.955]
[1748074929636,12.08017452,2542.7,2542.6,27.04]
[1748074929825,12.08017452,2542.7,2542.4,0.61397349]
[1748074929826,8.0,2542.6,2542.4,0.61397349]
[1748074930135,10.356,2542.6,2542.5,11.774]
[1748074930331,2.356,2542.6,2542.5,11.774]
[1748074930925,3.52891944,2542.6,2542.5,11.774]
[1748074931362,2.71941944,2542.6,2542.4,0.61397349]
[1748074931666,11.52891944,2542.5,2542.4,0.61397349]
[1748074931867,11.52891944,2542.5,2542.4,12.38797349]
[1748074932186,9.17291944,2542.5,2542.4,12.38797349]
[1748074932635,8.8095,2542.5,2542.4,12.38797349]
[1748074932961,0.8095,2542.5,2542.4,12.38797349]
[1748074934340,3.1655,2542.7,2542.4,12.38797349]
[1748074934675,0.8095,2542.7,2542.4,12.38797349]
[1748074935680,0.8095,2542.7,2542.5,11.776]
[1748074936685,0.8095,2542.7,2542.6,11.776]
[1748074937387,1.17246545,2542.7,2542.6,11.776]
[1748074938104,0.46396283,2543.1,2542.6,13.84789735]
[1748074938596,0.46396283,2543.3,2542.6,13.84789735]
[1748074939167,0.46396283,2543.3,2542.7,32.214]
[1748074939675,0.46396283,2543.3,2542.8,0.8329]
[1748074939858,0.7939,2543.6,2542.8,0.8329]
[1748074940047,8.7939,2543.6,2542.9,1.60879]
[1748074940448,8.7939,2543.6,2542.8,0.8329]
[1748074941089,1.15704957,2543.6,2542.8,0.8329]
[1748074941307,6.33996725,2543.6,2542.8,0.8329]
[1748074941472,10.356,2543.5,2542.9,11.777]
[1748074941673,10.356,2543.5,2543.0,11.776]
[1748074941990,2.356,2543.3,2543.0,11.776]
[1748074942899,3.1065,2543.2,2542.5,0.7634]
[1748074943086,3.1065,2543.2,2543.1,11.776]
[1748074943400,3.1065,2543.2,2542.5,0.7634]
[1748074943606,3.1065,2543.2,2542.6,11.776]
[1748074944302,3.46964957,2543.2,2542.6,11.776]
[1748074945204,2.356,2543.0,2542.7,11.776]
[1748074945401,2.71914957,2543.0,2542.7,11.776]
[1748074945607,5.54606725,2543.0,2542.7,11.776]
[1748074946504,2.71914957,2542.9,2542.7,11.776]
[1748074947701,0.36314957,2542.8,2542.7,11.776]
[1748074949310,0.36314957,2542.8,2542.7,43.988]
[1748074950334,0.36314957,2542.8,2542.7,31.80979309]
[1748074950534,0.36314957,2542.9,2542.7,16.55579309]
[1748074950731,0.36314957,2542.9,2542.7,12.6058]
[1748074951334,0.46396283,2543.0,2542.8,0.8298]
[1748074951535,0.46396283,2543.3,2542.8,0.8298]
[1748074953235,11.1275,2543.7,2542.8,0.8298]
[1748074953236,11.59146283,2543.7,2542.8,0.8298]
[1748074953835,0.3642014,2543.6,2542.8,0.8298]
[1748074954031,0.3642014,2543.6,2542.9,1.26058]
[1748074954285,0.3642014,2543.6,2543.0,11.775]
[1748074954581,0.3642014,2543.5,2542.8,0.8298]
[1748074954750,0.3642014,2543.5,2542.9,11.775]
[1748074955354,0.3642014,2543.4,2542.9,11.775]
[1748074956193,0.3642014,2543.6,2543.0,0.8064]
[1748074956394,0.3642014,2543.6,2543.2,0.8064]
[1748074957095,0.3642014,2543.8,2543.2,0.8064]
[1748074957305,1.1238014,2543.8,2543.3,11.775]
[1748074957796,0.3642014,2543.7,2543.3,11.775]
[1748074958385,0.3642014,2543.7,2543.0,0.8064]
[1748074958587,0.7596,2543.6,2542.8,0.8064]
[1748074958791,0.7596,2543.6,2543.1,11.775]
[1748074958963,0.3642014,2543.5,2543.1,11.775]
[1748074959161,0.3642014,2543.5,2543.2,32.206]
[1748074959896,0.3642014,2543.4,2543.2,32.206]
[1748074960986,0.3642014,2543.3,2543.2,32.206]
[1748074961303,0.3642014,2543.3,2543.2,15.251]
[1748074961531,1.1149014,2543.3,2543.2,11.774]
[1748074966337,0.3642014,2543.3,2543.2,11.774]
[1748074967038,2.7202014,2543.3,2543.2,11.774]
[1748074967440,8.0,2543.2,2542.6,0.8325]
[1748074967737,3.71418666,2542.8,2542.7,11.774]
[1748074968128,4.07838806,2542.8,2542.7,11.774]
[1748074969175,4.07838806,2542.8,2542.7,43.969]
[1748074969534,0.3642014,2542.8,2542.7,47.48317501]
[1748074969945,0.3642014,2542.8,2542.7,30.52817501]
[1748074970140,0.3642014,2542.8,2542.7,27.014]
[1748074971321,0.3642014,2542.8,2542.7,15.24]
[1748074971526,0.3642014,2542.8,2542.7,27.014]
[1748074971725,2.7202014,2542.8,2542.5,0.61399899]
[1748074971964,2.7202014,2542.8,2542.6,11.775]
[1748074972861,0.3642014,2542.7,2542.5,0.61399899]
[1748074973057,0.3642014,2542.7,2542.6,11.775]
[1748074976761,2.7202014,2542.7,2542.5,0.61399899]
[1748074976964,10.7202014,2542.7,2542.6,11.775]
[1748074979173,10.7202014,2542.7,2542.6,43.974]
[1748074980774,10.7202014,2542.7,2542.6,27.017]
[1748074981694,0.3642014,2542.7,2542.6,11.775]
[1748074981868,0.3642014,2542.7,2542.6,14.32362948]
[1748074982389,0.46396283,2542.8,2542.6,14.32462948]
[1748074982760,0.46396283,2542.8,2542.6,13.54922948]
[1748074982955,2.81996283,2543.4,2542.7,0.7754]
[1748074983155,0.36411688,2543.3,2542.7,2.26926285]
[1748074984299,0.36411688,2543.2,2542.7,2.26926285]
[1748074984652,0.36411688,2543.2,2542.7,0.7754]
[1748074984906,0.36411688,2543.2,2542.8,11.776]
[1748074985116,0.7721,2543.0,2542.5,0.61399899]
[1748074985257,0.36411688,2543.1,2542.9,11.776]
[1748074985691,0.36411688,2543.0,2542.9,11.776]
[1748074989197,0.36411688,2543.0,2542.9,43.975]
[1748074990298,0.36411688,2543.0,2542.9,16.55079309]
[1748074990470,0.36411688,2543.0,2542.9,12.6008]
[1748074990793,0.36411688,2543.0,2542.9,11.776]
[1748074991096,0.36411688,2543.0,2542.7,0.8248]
[1748074991292,0.36411688,2543.0,2542.8,11.775]
[1748074991788,0.36411688,2542.9,2542.8,11.775]
[1748074991964,0.36411688,2542.9,2542.7,0.8248]
[1748074992172,1.72230354,2542.9,2542.5,0.61399899]
[1748074992359,1.72230354,2542.9,2542.6,11.775]
[1748074992552,0.36411688,2542.8,2542.6,11.775]
[1748074992754,0.36411688,2542.8,2542.7,0.8261]
[1748074993892,0.46396283,2542.9,2542.7,0.8261]
[1748074994502,0.46396283,2542.9,2542.8,11.775]
[1748074994902,3.62376283,2543.3,2542.8,11.775]
[1748074995224,4.98194949,2543.3,2542.8,11.775]
[1748074995617,0.36475188,2543.2,2542.8,11.775]
[1748074996393,0.36475188,2543.1,2542.9,11.775]
[1748074997021,0.36475188,2543.0,2542.9,11.775]
[1748074998029,3.1598,2542.9,2542.5,0.61399899]
[1748074998185,2.356,2542.7,2542.5,0.61399899]
[1748074998386,3.71418666,2542.7,2542.6,11.775]
[1748074998823,3.71418666,2542.7,2542.5,0.61399899]
[1748074999011,11.52455188,2542.6,2542.5,0.61399899]
[1748074999193,11.52455188,2542.6,2542.5,44.57499899]
[1748075001723,12.53851471,2542.6,2542.5,0.61399899]
[1748075001920,12.53851471,2542.6,2542.5,27.62099899]
[1748075002121,12.53851471,2542.6,2542.5,15.84499899]
[1748075002297,12.53851471,2542.6,2542.5,12.38999899]
[1748075003016,12.69518924,2542.6,2542.5,12.38999899]
[1748075005234,13.5033759,2542.6,2542.5,12.38999899]
[1748075005996,0.83096006,2542.6,2542.5,13.62899889]
[1748075006409,8.83096006,2542.6,2542.5,13.62899889]
[1748075006584,8.46620818,2542.6,2542.5,13.62899889]
[1748075006786,0.46620818,2542.6,2542.5,0.61399899]
[1748075006981,0.46620818,2542.6,2542.5,12.39099899]
[1748075007519,0.36421972,2542.7,2542.5,12.39099899]
[1748075007925,0.36421972,2542.7,2542.5,13.63009889]
[1748075008616,9.27000818,2543.0,2542.5,13.63009889]
[1748075009202,9.27000818,2543.0,2542.6,32.192]
[1748075009529,0.36426075,2542.9,2542.6,32.192]
[1748075010943,11.62600818,2543.0,2542.6,32.192]
[1748075010944,0.36426075,2542.8,2542.6,32.192]
[1748075011643,0.36426075,2542.8,2542.6,15.233]
[1748075011940,2.72026075,2542.7,2542.6,16.22245122]
[1748075015738,2.72026075,2542.7,2542.6,0.98945122]
[1748075017321,8.0,2542.6,2542.5,13.63009889]
[1748075018254,8.36426075,2542.6,2542.5,13.63009889]
[1748075018752,0.36426075,2542.6,2542.5,13.63009889]
[1748075018912,0.36426075,2542.6,2542.5,1.85309889]
[1748075019245,0.36426075,2542.6,2542.5,44.58299899]
[1748075020018,0.36426075,2542.6,2542.5,32.80599899]
[1748075020019,2.72026075,2542.6,2542.5,32.80599899]
[1748075020227,3.55256075,2542.6,2542.5,32.80599899]
[1748075020415,3.55256075,2542.6,2542.5,44.58299899]
[1748075020856,3.55256075,2542.6,2542.5,0.61399899]
[1748075021040,3.55256075,2542.6,2542.5,12.39099899]
[1748075021579,4.10256075,2542.6,2542.5,12.39099899]
[1748075021728,12.10256075,2542.6,2542.5,0.61399899]
[1748075021916,12.10256075,2542.6,2542.5,12.39099899]
[1748075022117,12.56876893,2542.6,2542.5,12.39099899]
[1748075023537,12.10256075,2542.6,2542.5,12.39099899]
[1748075024629,22.29256075,2542.6,2542.5,12.39099899]
[1748075025149,2.356,2542.4,2541.5,0.811]
[1748075025382,2.356,2542.0,2541.6,11.777]
[1748075025693,2.356,2542.0,2541.7,0.6142109]
[1748075025898,2.356,2542.0,2541.7,12.3922109]
[1748075026776,2.356,2541.8,2541.7,0.6142109]
[1748075027077,2.356,2541.8,2541.7,12.3922109]
[1748075027258,2.72026075,2541.8,2541.7,12.3922109]
[1748075027442,2.72026075,2541.8,2541.7,0.6142109]
[1748075027647,12.08029889,2541.8,2541.7,0.6142109]
[1748075027981,12.08029889,2541.8,2541.7,12.3922109]
[1748075029246,12.08029889,2541.8,2541.7,44.5822109]
[1748075029446,12.54655903,2541.8,2541.7,44.5822109]
[1748075030786,12.08029889,2541.8,2541.7,44.5822109]
[1748075031785,12.08029889,2541.8,2541.7,27.6202109]
[1748075034293,8.36426075,2541.8,2541.7,12.3922109]
[1748075034493,8.36426075,2541.8,2541.7,13.70659199]
[1748075034494,0.36426075,2541.8,2541.7,13.70659199]
[1748075035362,0.46626014,2542.0,2541.7,13.70659199]
[1748075035897,0.36426075,2542.1,2541.7,13.70659199]
[1748075036499,8.36426075,2542.2,2541.7,13.70659199]
[1748075037099,2.356,2542.1,2541.7,13.70659199]
[1748075037491,2.72026075,2542.1,2541.7,13.70659199]
[1748075039297,2.72026075,2542.1,2541.8,32.194]
[1748075039666,2.72026075,2542.1,2541.8,34.03423113]
[1748075040472,3.71603814,2542.0,2541.7,0.6142109]
[1748075040897,3.71603814,2542.0,2541.8,11.78]
[1748075041298,10.356,2542.0,2541.8,11.78]
[1748075041502,0.36426075,2541.9,2541.8,11.78]
[1748075044009,0.31426075,2541.9,2541.8,11.78]
[1748075045583,2.356,2542.1,2541.8,11.78]
[1748075045772,10.356,2542.1,2541.8,11.78]
[1748075049307,10.356,2542.1,2541.9,32.194]
[1748075049505,10.82226014,2542.1,2541.9,32.194]
[1748075050015,2.82226014,2542.1,2541.9,32.194]
[1748075050171,0.46626014,2542.1,2541.9,36.14399309]
[1748075051308,0.46626014,2542.1,2541.9,19.17999309]
[1748075051485,8.8321,2542.5,2542.0,0.7621]
[1748075051486,0.46626014,2542.2,2542.0,0.7621]
[1748075052607,0.46626014,2542.3,2542.0,0.7621]
[1748075053317,0.46626014,2542.3,2542.0,2.01631]
[1748075053481,0.46626014,2542.3,2542.2,0.7621]
[1748075054524,0.46626014,2542.5,2542.2,0.7621]
[1748075054813,0.46626014,2542.5,2542.3,11.78]
[1748075054814,1.82629828,2542.5,2542.3,11.78]
[1748075055173,0.46626014,2542.5,2542.3,11.78]
[1748075055514,0.46626014,2542.5,2542.4,1.9401]
[1748075056206,0.46626014,2542.6,2542.4,1.178]
[1748075056410,8.46626014,2542.6,2542.5,11.78]
[1748075056573,8.46626014,2542.6,2542.2,0.7621]
[1748075056776,8.46626014,2542.6,2542.3,11.78]
[1748075058123,8.0,2542.5,2542.3,11.78]
[1748075058424,0.36448063,2542.5,2542.3,11.78]
[1748075058909,0.36448063,2542.4,2542.3,11.78]
[1748075059219,0.36448063,2542.4,2542.3,43.958]
[1748075059832,0.36448063,2542.4,2542.3,15.72999309]
[1748075060134,0.46626014,2542.6,2542.3,12.5431]
[1748075060675,2.356,2542.9,2542.3,12.5431]
[1748075060906,10.356,2542.9,2542.3,12.5431]
[1748075061117,8.364386,2542.8,2542.3,12.5431]
[1748075062283,0.364386,2542.7,2542.3,11.78]
[1748075062481,0.364386,2542.7,2542.5,0.7811]
[1748075063305,0.46626014,2543.0,2542.5,0.7811]
[1748075063625,0.46626014,2543.0,2542.7,0.7811]
[1748075064424,0.364386,2543.1,2542.7,0.7811]
[1748075064628,0.364386,2543.1,2542.8,1.25591]
[1748075064839,0.364386,2543.2,2542.8,1.25591]
[1748075065051,0.364386,2543.2,2542.9,0.8004]
[1748075065741,0.46626014,2543.5,2542.9,0.8004]
[1748075066805,0.364386,2543.6,2543.1,0.8004]
[1748075067442,2.720386,2543.7,2543.1,0.8004]
[1748075067740,1.36003814,2543.6,2543.2,11.776]
[1748075067890,0.364386,2543.7,2543.2,13.03364]
[1748075069106,0.364386,2543.7,2543.3,32.169]
[1748075069937,0.364386,2543.7,2543.3,15.211]
[1748075070107,0.364386,2543.7,2543.4,0.7785]
[1748075070291,1.41003814,2543.9,2543.4,0.7785]
[1748075070497,1.36003814,2543.9,2543.4,3.680814]
[1748075071103,1.36003814,2543.7,2543.2,1.25764]
[1748075071300,1.36003814,2543.7,2543.3,11.775]
[1748075071643,1.36003814,2543.5,2543.4,11.775]
[1748075072005,2.11223814,2543.7,2543.4,11.775]
[1748075072199,1.36003814,2543.7,2543.4,11.775]
[1748075072400,1.36003814,2543.7,2543.4,12.5535]
[1748075073335,1.36003814,2543.7,2543.2,0.7785]
[1748075073639,1.36003814,2543.3,2542.6,0.7785]
[1748075073838,0.7522,2543.4,2542.6,0.7785]
[1748075073839,1.36003814,2543.1,2542.7,11.774]
[1748075073995,0.7522,2543.4,2542.7,11.774]
[1748075073996,1.36003814,2543.3,2542.7,11.774]
[1748075075432,1.36003814,2543.1,2542.6,1.45835]
[1748075075745,1.36003814,2543.1,2542.7,11.774]
[1748075075927,2.356,2542.7,2542.1,0.05]
[1748075076251,1.36003814,2542.5,2542.2,11.774]
[1748075076453,1.36003814,2542.5,2542.2,13.03957]
[1748075078149,1.72350663,2542.5,2542.3,11.774]
[1748075078462,1.72350663,2542.5,2542.1,0.05]
[1748075078463,3.6989,2542.2,2542.1,0.05]
[1748075078663,3.6989,2542.2,2542.1,11.824]
[1748075079230,4.06236849,2542.2,2542.1,43.992]
[1748075082063,1.70636849,2542.2,2542.1,43.992]
[1748075082460,1.15636849,2542.2,2542.1,43.992]
[1748075082662,0.36346849,2542.2,2542.1,27.035]
[1748075082963,1.82629828,2542.3,2542.1,27.035]
[1748075083976,1.36003814,2542.3,2542.1,27.035]
[1748075084386,1.36003814,2542.3,2542.1,11.824]
[1748075085134,1.3728,2542.2,2542.1,0.05]
[1748075085385,9.3728,2542.2,2542.1,11.827]
[1748075086370,9.73626849,2542.2,2542.1,11.827]
[1748075087169,9.73626849,2542.2,2542.1,0.05]
[1748075087376,9.73626849,2542.2,2542.1,11.828]
[1748075089365,19.92626849,2542.2,2542.1,44.005]
[1748075090087,19.92626849,2542.2,2542.1,11.828]
[1748075090233,20.73630663,2542.2,2542.1,11.828]
[1748075090439,19.37626849,2542.2,2542.1,11.828]
[1748075090679,20.73630663,2542.2,2542.1,11.828]
[1748075092002,23.09430663,2542.2,2542.1,11.828]
[1748075092677,0.36346849,2542.2,2542.1,11.828]
[1748075093000,8.0,2542.4,2542.1,13.7757]
[1748075093147,8.0,2542.4,2542.1,12.5929]
[1748075093653,8.36346849,2542.4,2542.1,12.5929]
[1748075094599,1.36003814,2542.3,2542.1,0.05]
[1748075094892,1.36003814,2542.3,2542.2,11.78]
[1748075095396,3.71803814,2542.4,2542.2,11.78]
[1748075095590,3.71803814,2542.4,2542.1,0.05]
[1748075095897,8.7576,2542.7,2542.3,11.78]
[1748075095898,10.358,2542.6,2542.3,11.78]
[1748075096056,10.72109333,2542.6,2542.3,11.78]
[1748075096868,10.358,2542.2,2542.1,0.05]
[1748075097172,11.71803814,2542.2,2542.1,11.83]
[1748075097697,11.71803814,2542.2,2542.1,0.05]
[1748075097698,12.63113147,2542.2,2542.1,0.05]
[1748075097900,27.54063228,2542.2,2542.1,0.05]
[1748075098088,27.54063228,2542.2,2542.1,11.83]
[1748075098970,28.90067042,2542.2,2542.1,0.05]
[1748075099184,29.10524297,2542.2,2542.1,44.0]
[1748075099430,27.74520483,2542.2,2542.1,44.0]
[1748075099719,29.21420019,2542.2,2542.1,44.0]
[1748075099882,29.83588037,2542.2,2542.1,44.0]
[1748075100089,29.83588037,2542.2,2542.1,44.001]
[1748075100580,29.83588037,2542.2,2542.1,32.221]
[1748075100786,29.83588037,2542.2,2542.1,44.002]
[1748075101289,29.83588037,2542.2,2542.1,32.221]
[1748075101486,29.83588037,2542.2,2542.1,44.002]
[1748075102371,29.21420019,2542.2,2542.1,44.002]
[1748075102773,24.52602683,2542.2,2542.1,44.002]
[1748075103172,25.07602683,2542.2,2542.1,44.002]
[1748075105124,29.00962764,2542.2,2542.1,32.221]
[1748075105290,29.63197183,2542.2,2542.1,0.05]
[1748075105501,29.63197183,2542.2,2542.1,27.04]
[1748075106831,29.00962764,2542.2,2542.1,27.04]
[1748075107547,25.07602683,2542.2,2542.1,27.04]
[1748075107746,24.52602683,2542.2,2542.1,27.04]
[1748075107948,25.07602683,2542.2,2542.1,27.04]
[1748075108525,21.46109333,2542.2,2542.1,27.04]
[1748075108739,2.72109333,2542.2,2542.1,14.535]
[1748075108940,10.72109333,2542.2,2542.1,11.831]
[1748075109253,2.72109333,2542.2,2542.1,44.007]
[1748075110853,3.18891989,2542.2,2542.1,44.007]
[1748075111055,0.83091989,2542.2,2542.1,27.8359]
[1748075111265,0.83091989,2542.2,2542.1,12.6259]
[1748075111554,0.83091989,2542.2,2542.1,13.88849]
[1748075112129,0.36309333,2542.2,2542.1,13.88849]
[1748075112335,0.46782656,2542.6,2542.2,0.7949]
[1748075113832,0.46782656,2543.0,2542.2,0.7949]
[1748075115047,0.36496766,2542.9,2542.2,0.7949]
[1748075115368,0.36496766,2542.9,2542.4,0.7772]
[1748075115866,0.36496766,2542.9,2542.5,0.03932293]
[1748075116067,0.36496766,2543.1,2542.6,0.7772]
[1748075117269,0.36496766,2543.2,2542.6,0.7772]
[1748075117476,0.36496766,2543.2,2542.4,0.7772]
[1748075117772,0.36496766,2543.2,2542.6,0.7772]
[1748075118262,0.46782656,2543.6,2542.6,0.7772]
[1748075118764,0.46782656,2543.6,2542.7,0.7772]
[1748075119267,0.36496766,2543.9,2542.8,38.761]
[1748075119570,0.36496766,2543.9,2543.0,0.7772]
[1748075119863,0.36496766,2543.9,2543.2,0.7772]
[1748075120231,0.36496766,2543.9,2543.3,11.778]
[1748075120430,8.83279422,2544.0,2543.3,11.778]
[1748075120871,8.36496766,2544.0,2543.3,11.778]
[1748075121034,8.36496766,2544.0,2543.4,1.25552]
[1748075121435,8.0,2543.7,2543.5,11.778]
[1748075121865,8.0,2543.7,2543.2,0.7772]
[1748075122068,8.0,2543.7,2543.3,11.776]
[1748075122576,8.36496766,2543.7,2543.3,11.776]
[1748075123378,8.0,2543.7,2543.3,11.776]
[1748075124974,2.8290335,2543.5,2543.4,11.776]
[1748075125354,2.8290335,2543.5,2542.6,0.7908]
[1748075125550,2.8290335,2543.5,2542.7,11.776]
[1748075125762,2.8290335,2543.5,2542.8,1.25668]
[1748075128249,2.8290335,2543.5,2542.9,0.8229]
[1748075129152,2.8290335,2543.5,2543.0,32.151]
[1748075129377,8.0,2543.4,2543.0,32.151]
[1748075129593,8.0,2543.4,2543.1,11.775]
[1748075130167,0.786,2543.6,2543.1,13.03479]
[1748075130371,0.36254899,2543.7,2543.1,13.03479]
[1748075130580,2.8290335,2543.8,2543.1,13.03479]
[1748075131284,3.19177777,2543.8,2543.1,13.03479]
[1748075131467,2.8290335,2543.5,2543.1,11.775]
[1748075131675,0.7859,2543.4,2543.1,11.775]
[1748075131880,2.358,2543.3,2543.1,11.775]
[1748075132100,0.7859,2543.4,2543.1,11.775]
[1748075132388,2.8290335,2543.5,2543.1,11.775]
[1748075132766,0.7859,2543.6,2543.1,13.03479]
[1748075133082,3.97767777,2543.8,2543.1,13.03479]
[1748075133392,0.36274427,2543.8,2543.2,0.7745]
[1748075133574,3.19177777,2543.8,2543.2,0.7745]
[1748075134251,0.7859,2543.7,2543.3,11.775]
[1748075134887,3.19177777,2543.8,2543.3,11.775]
[1748075135187,8.0,2543.7,2543.3,11.775]
[1748075136487,8.0,2543.7,2543.3,1.1775]
[1748075136688,8.7859,2543.7,2543.4,11.774]
[1748075137481,0.36274427,2543.6,2543.4,11.774]
[1748075137789,1.72072427,2543.6,2543.4,11.774]
[1748075138788,0.36274427,2543.5,2543.4,11.774]
[1748075139193,0.36274427,2543.5,2543.4,43.922]
[1748075139493,0.36274427,2543.5,2543.4,47.87199309]
[1748075141387,0.36274427,2543.5,2543.4,30.91699309]
[1748075143302,0.36274427,2543.5,2543.4,15.72399309]
[1748075143599,0.36274427,2543.5,2543.4,12.587]
[1748075147604,0.36274427,2543.5,2543.4,0.813]
[1748075147838,0.36274427,2543.5,2543.4,12.586]
[1748075148502,0.36274427,2543.5,2543.4,0.813]
[1748075148703,0.36274427,2543.5,2543.4,12.586]
[1748075148902,0.36274427,2543.5,2543.4,13.8446]
[1748075149325,0.36274427,2543.5,2543.4,45.9896]
[1748075152387,0.36274427,2543.5,2543.4,13.8446]
[1748075154630,0.36274427,2543.5,2543.4,2.0716]
[1748075154835,0.36274427,2543.5,2543.4,11.772]
[1748075159112,0.36274427,2543.5,2543.4,43.907]
[1748075159611,0.36274427,2543.5,2543.4,26.955]
[1748075161403,0.36274427,2543.5,2543.4,11.772]
[1748075162815,2.72074427,2543.5,2543.4,11.772]
[1748075163021,0.36274427,2543.5,2543.4,13.03006]
[1748075163536,0.36274427,2543.5,2543.2,0.8086]
[1748075163701,1.35798,2543.4,2543.0,0.8244]
[1748075163903,1.35798,2543.4,2543.3,11.772]
[1748075164655,1.72072427,2543.4,2543.3,11.772]
[1748075165267,2.18855083,2543.4,2543.3,11.772]
[1748075165822,0.83057083,2543.4,2543.3,12.9492]
[1748075166133,0.83057083,2543.4,2543.3,13.7541]
[1748075166507,0.36274427,2543.4,2543.3,13.7541]
[1748075167327,0.46782656,2543.6,2543.3,13.7541]
[1748075168375,0.36581215,2543.5,2543.4,0.84420961]
[1748075168668,0.36581215,2543.5,2543.4,2.22355057]
[1748075168822,0.36581215,2543.5,2543.4,2.18424096]
[1748075169212,0.46782656,2543.9,2543.4,40.91124096]
[1748075169522,0.46782656,2543.9,2543.5,0.8442036]
[1748075170248,0.46782656,2543.9,2543.5,0.8049]
[1748075170448,0.46782656,2543.9,2543.6,0.2184241]
[1748075170626,2.76922945,2544.7,2543.7,0.7627]
[1748075170627,0.46782656,2544.4,2543.7,0.7627]
[1748075171755,9.96532945,2544.7,2543.7,0.7627]
[1748075171756,1.96532945,2544.7,2543.7,0.7627]
[1748075172449,0.36532609,2544.6,2543.7,0.7627]
[1748075173224,0.36532609,2544.5,2543.7,0.7627]
[1748075174361,1.72330609,2544.4,2543.8,11.771]
[1748075174659,1.72330609,2544.4,2543.9,1.25337]
[1748075175420,0.36532609,2544.3,2543.9,1.25337]
[1748075175924,1.35798,2544.0,2543.4,0.7788]
[1748075176164,1.35798,2544.0,2543.5,11.77]
[1748075176370,0.36532609,2543.9,2543.5,11.77]
[1748075176891,1.35798,2543.6,2542.9,0.7788]
[1748075177041,1.35798,2543.4,2542.9,0.7788]